[Event "*** Titled Tuesday Blitz"]
[Site "Chess.com"]
[Date "2019.06.04"]
[Round "8"]
[White "Alliswell998"]
[Black "ehrenfeld"]
[Result "0-1"]
[WhiteElo "2421"]
[BlackElo "2507"]
[TimeControl "180+2"]
[EndTime "14:52:07 PDT"]
[Termination "ehrenfeld won by checkmate"]

1. e4 {[%clk 0:03:01.9]} 1... e5 {[%clk 0:02:59.5]} 2. Nf3 {[%clk 0:03:02]} 2...
Nc6 {[%clk 0:03:00.5]} 3. Nc3 {[%clk 0:03:02]} 3... Nf6 {[%clk 0:03:01]} 4. d4
{[%clk 0:03:02.6]} 4... exd4 {[%clk 0:03:01.5]} 5. Nd5 {[%clk 0:03:03]} 5... Be7
{[%clk 0:03:00.9]} 6. Nxd4 {[%clk 0:03:02.6]} 6... O-O {[%clk 0:03:00.1]} 7. Nf5
{[%clk 0:03:02.8]} 7... d6 {[%clk 0:02:45]} 8. Nfxe7+ {[%clk 0:03:02.8]} 8...
Nxe7 {[%clk 0:02:45.4]} 9. Nxf6+ {[%clk 0:03:04.2]} 9... gxf6 {[%clk 0:02:45.6]}
10. Bd3 {[%clk 0:03:05.3]} 10... Kh8 {[%clk 0:02:39.9]} 11. Qh5 {[%clk
0:03:03.5]} 11... Be6 {[%clk 0:02:29.4]} 12. e5 {[%clk 0:02:54.8]} 12... Ng6
{[%clk 0:02:21.1]} 13. f4 {[%clk 0:02:49.4]} 13... f5 {[%clk 0:01:35.9]} 14. Bd2
{[%clk 0:02:35.6]} 14... dxe5 {[%clk 0:01:29.2]} 15. O-O-O {[%clk 0:02:35.7]}
15... Qh4 {[%clk 0:01:15.4]} 16. Qxh4 {[%clk 0:02:19.1]} 16... Nxh4 {[%clk
0:01:15.8]} 17. fxe5 {[%clk 0:02:20.6]} 17... Nxg2 {[%clk 0:01:11.8]} 18. Bg5
{[%clk 0:02:18.9]} 18... h6 {[%clk 0:01:05.4]} 19. Bf6+ {[%clk 0:02:15.4]} 19...
Kh7 {[%clk 0:01:02.8]} 20. Rhg1 {[%clk 0:02:16.8]} 20... Rg8 {[%clk 0:01:03.1]}
21. Rdf1 {[%clk 0:02:10.7]} 21... Ne3 {[%clk 0:00:56.3]} 22. Rxg8 {[%clk
0:02:10.7]} 22... Rxg8 {[%clk 0:00:55.9]} 23. Rf3 {[%clk 0:02:12.1]} 23... Rg1+
{[%clk 0:00:37.2]} 24. Kd2 {[%clk 0:02:11.5]} 24... Ng4 {[%clk 0:00:34]} 25.
Rxf5 {[%clk 0:02:11.1]} 25... Bxf5 {[%clk 0:00:32.2]} 26. Bxf5+ {[%clk
0:02:12.3]} 26... Kg8 {[%clk 0:00:33.4]} 27. Bd8 {[%clk 0:02:03.8]} 27... Nxe5
{[%clk 0:00:29.5]} 28. Bxc7 {[%clk 0:02:04.1]} 28... Rg2+ {[%clk 0:00:27.4]} 29.
Kc3 {[%clk 0:02:02.6]} 29... Nc6 {[%clk 0:00:28.2]} 30. b4 {[%clk 0:01:59.1]}
30... a6 {[%clk 0:00:27.2]} 31. a4 {[%clk 0:01:59.5]} 31... Rf2 {[%clk
0:00:27.3]} 32. Bc8 {[%clk 0:01:58.5]} 32... b5 {[%clk 0:00:20.7]} 33. Bxa6
{[%clk 0:01:52]} 33... Rf3+ {[%clk 0:00:21.1]} 34. Kb2 {[%clk 0:01:52]} 34...
bxa4 {[%clk 0:00:19.7]} 35. b5 {[%clk 0:01:53]} 35... Na7 {[%clk 0:00:15]} 36.
b6 {[%clk 0:01:51.1]} 36... a3+ {[%clk 0:00:15.8]} 37. Ka2 {[%clk 0:01:51]}
37... Nc6 {[%clk 0:00:16.6]} 38. Bd6 {[%clk 0:01:44.4]} 38... Rf6 {[%clk
0:00:11.2]} 39. Bxa3 {[%clk 0:01:41.9]} 39... Nb4+ {[%clk 0:00:10.3]} 40. Bxb4
{[%clk 0:01:29.5]} 40... Rxb6 {[%clk 0:00:11.2]} 41. c4 {[%clk 0:01:17.9]} 41...
Rxa6+ {[%clk 0:00:10.8]} 42. Kb3 {[%clk 0:01:19]} 42... f5 {[%clk 0:00:10.2]}
43. Bd2 {[%clk 0:01:17.1]} 43... Kf7 {[%clk 0:00:10.1]} 44. c5 {[%clk
0:01:17.4]} 44... h5 {[%clk 0:00:09.2]} 45. Kc4 {[%clk 0:01:16.2]} 45... Ke6
{[%clk 0:00:10]} 46. Kb5 {[%clk 0:01:14.7]} 46... Ra2 {[%clk 0:00:11.1]} 47. Bf4
{[%clk 0:01:15.8]} 47... Rb2+ {[%clk 0:00:11]} 48. Kc6 {[%clk 0:01:14.6]} 48...
Rc2 {[%clk 0:00:11.8]} 49. Bd6 {[%clk 0:01:05.8]} 49... h4 {[%clk 0:00:11.2]}
50. Kc7 {[%clk 0:01:01.5]} 50... Kd5 {[%clk 0:00:10.7]} 51. Kb6 {[%clk
0:00:50.8]} 51... h3 {[%clk 0:00:10.3]} 52. Bg3 {[%clk 0:00:46.8]} 52... Rc4
{[%clk 0:00:11]} 53. Kb5 {[%clk 0:00:21.5]} 53... f4 {[%clk 0:00:10.7]} 54. Bh4
{[%clk 0:00:22.4]} 54... f3 {[%clk 0:00:11]} 55. Bg3 {[%clk 0:00:22.2]} 55...
Rxc5+ {[%clk 0:00:09.8]} 56. Kb4 {[%clk 0:00:24]} 56... Rc2 {[%clk 0:00:10.6]}
57. Kb3 {[%clk 0:00:25.9]} 57... f2 {[%clk 0:00:11.8]} 58. Kxc2 {[%clk
0:00:27.3]} 58... f1=Q {[%clk 0:00:12.8]} 59. Kd2 {[%clk 0:00:29.2]} 59... Kd4
{[%clk 0:00:13]} 60. Kc2 {[%clk 0:00:28.9]} 60... Qd3+ {[%clk 0:00:12.6]} 61.
Kc1 {[%clk 0:00:29.1]} 61... Qe2 {[%clk 0:00:13.3]} 62. Be1 {[%clk 0:00:29.1]}
62... Qxe1+ {[%clk 0:00:12.9]} 63. Kb2 {[%clk 0:00:30.1]} 63... Qd2+ {[%clk
0:00:13.4]} 64. Ka3 {[%clk 0:00:29.8]} 64... Qc2 {[%clk 0:00:10.1]} 65. Kb4
{[%clk 0:00:30.5]} 65... Qb1+ {[%clk 0:00:11.1]} 66. Ka5 {[%clk 0:00:31.4]}
66... Kc5 {[%clk 0:00:12.2]} 67. Ka6 {[%clk 0:00:33.3]} 67... Qb6# {[%clk
0:00:13]} 0-1

[Event "*** Titled Tuesday Blitz"]
[Site "Chess.com"]
[Date "2019.06.04"]
[Round "8"]
[White "dusanacns"]
[Black "Jbd735"]
[Result "1/2-1/2"]
[WhiteElo "2628"]
[BlackElo "2427"]
[TimeControl "180+2"]
[EndTime "14:52:12 PDT"]
[Termination "Game drawn - insufficient material"]

1. e4 {[%clk 0:03:00.1]} 1... e5 {[%clk 0:03:00.5]} 2. Nf3 {[%clk 0:03:00.9]}
2... Nc6 {[%clk 0:03:01.8]} 3. Nc3 {[%clk 0:03:02.1]} 3... Nf6 {[%clk
0:03:02.1]} 4. Bb5 {[%clk 0:03:03.2]} 4... Bb4 {[%clk 0:03:00.2]} 5. O-O {[%clk
0:03:03.7]} 5... O-O {[%clk 0:02:46.4]} 6. d3 {[%clk 0:03:04.7]} 6... d6 {[%clk
0:02:39.7]} 7. Bg5 {[%clk 0:03:03.9]} 7... Bxc3 {[%clk 0:02:35.2]} 8. bxc3
{[%clk 0:03:05.8]} 8... Qe7 {[%clk 0:02:10.7]} 9. Re1 {[%clk 0:03:03.4]} 9... h6
{[%clk 0:02:05.2]} 10. Bh4 {[%clk 0:03:03.2]} 10... Bg4 {[%clk 0:01:51.5]} 11.
h3 {[%clk 0:03:03.9]} 11... Bh5 {[%clk 0:01:52.2]} 12. g4 {[%clk 0:03:05]} 12...
Bg6 {[%clk 0:01:52.6]} 13. d4 {[%clk 0:03:04.5]} 13... Nd8 {[%clk 0:01:37.4]}
14. Bd3 {[%clk 0:02:51.6]} 14... Bh7 {[%clk 0:01:30.8]} 15. Bg3 {[%clk
0:02:47.8]} 15... Nd7 {[%clk 0:01:24.7]} 16. Nh4 {[%clk 0:02:31.7]} 16... Ne6
{[%clk 0:01:08.6]} 17. Nf5 {[%clk 0:02:28.5]} 17... Qf6 {[%clk 0:01:09.6]} 18.
Rb1 {[%clk 0:00:58.6]} 18... Rab8 {[%clk 0:00:56.4]} 19. Ne3 {[%clk 0:00:47.7]}
19... exd4 {[%clk 0:00:50.8]} 20. Nd5 {[%clk 0:00:46.9]} 20... Qd8 {[%clk
0:00:51.1]} 21. cxd4 {[%clk 0:00:47.4]} 21... Nxd4 {[%clk 0:00:51]} 22. f4
{[%clk 0:00:47.2]} 22... c6 {[%clk 0:00:49]} 23. Ne3 {[%clk 0:00:42.6]} 23...
Nc5 {[%clk 0:00:47]} 24. f5 {[%clk 0:00:30.4]} 24... Re8 {[%clk 0:00:36.8]} 25.
Nc4 {[%clk 0:00:31.4]} 25... Nb5 {[%clk 0:00:31.7]} 26. Qd2 {[%clk 0:00:27.5]}
26... Qf6 {[%clk 0:00:24.3]} 27. Kg2 {[%clk 0:00:18.3]} 27... Nc3 {[%clk
0:00:23.9]} 28. Nxd6 {[%clk 0:00:11.8]} 28... Nxb1 {[%clk 0:00:14.1]} 29. Rxb1
{[%clk 0:00:13.7]} 29... Red8 {[%clk 0:00:13.1]} 30. e5 {[%clk 0:00:14.7]} 30...
Qg5 {[%clk 0:00:12.2]} 31. Qxg5 {[%clk 0:00:13.4]} 31... hxg5 {[%clk 0:00:14.1]}
32. Bc4 {[%clk 0:00:15]} 32... Kf8 {[%clk 0:00:13.1]} 33. Nxf7 {[%clk
0:00:13.4]} 33... Rd2+ {[%clk 0:00:13.5]} 34. Kg1 {[%clk 0:00:14.8]} 34... Rxc2
{[%clk 0:00:11.5]} 35. Nd6 {[%clk 0:00:13.3]} 35... Rd8 {[%clk 0:00:09.7]} 36.
e6 {[%clk 0:00:12.5]} 36... Ke7 {[%clk 0:00:09.8]} 37. Rd1 {[%clk 0:00:10.5]}
37... b5 {[%clk 0:00:08.7]} 38. Bf1 {[%clk 0:00:09.9]} 38... Ne4 {[%clk
0:00:08.1]} 39. Bd3 {[%clk 0:00:07.6]} 39... Nxg3 {[%clk 0:00:05.9]} 40. Bxc2
{[%clk 0:00:08.4]} 40... Rxd6 {[%clk 0:00:07.1]} 41. Rxd6 {[%clk 0:00:07.1]}
41... Kxd6 {[%clk 0:00:09]} 42. Kf2 {[%clk 0:00:08.7]} 42... Nxf5 {[%clk
0:00:05.8]} 43. gxf5 {[%clk 0:00:10.1]} 43... Bg8 {[%clk 0:00:03.2]} 44. Kg3
{[%clk 0:00:10.2]} 44... g6 {[%clk 0:00:04.2]} 45. fxg6 {[%clk 0:00:10.7]} 45...
Bxe6 {[%clk 0:00:04]} 46. g7 {[%clk 0:00:11.9]} 46... Bg8 {[%clk 0:00:03.9]} 47.
Bb3 {[%clk 0:00:13.3]} 47... Bh7 {[%clk 0:00:04.4]} 48. g8=Q {[%clk 0:00:14.7]}
48... Bxg8 {[%clk 0:00:05.8]} 49. Bxg8 {[%clk 0:00:16.6]} 49... Ke5 {[%clk
0:00:06.6]} 50. Kg4 {[%clk 0:00:17.8]} 50... Kf6 {[%clk 0:00:07.7]} 51. a4
{[%clk 0:00:16.5]} 51... bxa4 {[%clk 0:00:06.9]} 52. Bc4 {[%clk 0:00:17.7]}
52... a3 {[%clk 0:00:06.2]} 53. Ba2 {[%clk 0:00:18.9]} 53... Kg6 {[%clk
0:00:06.9]} 54. Bb1+ {[%clk 0:00:18.9]} 54... Kf6 {[%clk 0:00:07.7]} 55. Kh5
{[%clk 0:00:18.6]} 55... c5 {[%clk 0:00:07]} 56. Ba2 {[%clk 0:00:17.7]} 56...
Kf5 {[%clk 0:00:07.8]} 57. Bb3 {[%clk 0:00:17.8]} 57... Kf4 {[%clk 0:00:08.4]}
58. Ba2 {[%clk 0:00:18.8]} 58... Kg3 {[%clk 0:00:08.9]} 59. Kxg5 {[%clk
0:00:20.5]} 59... Kxh3 {[%clk 0:00:10]} 60. Kf4 {[%clk 0:00:22.2]} 60... Kg2
{[%clk 0:00:11.1]} 61. Ke3 {[%clk 0:00:23.9]} 61... Kf1 {[%clk 0:00:12.1]} 62.
Kd3 {[%clk 0:00:25.7]} 62... Ke1 {[%clk 0:00:13.2]} 63. Kc3 {[%clk 0:00:23.9]}
63... Kd1 {[%clk 0:00:14.1]} 64. Kb3 {[%clk 0:00:25.4]} 64... Kd2 {[%clk
0:00:14.8]} 65. Kxa3 {[%clk 0:00:27]} 65... Kc3 {[%clk 0:00:16]} 66. Ka4 {[%clk
0:00:28.7]} 66... c4 {[%clk 0:00:15]} 67. Ka5 {[%clk 0:00:29.5]} 67... Kd4
{[%clk 0:00:15.4]} 68. Bxc4 {[%clk 0:00:29.5]} 68... Kxc4 {[%clk 0:00:17.3]} 69.
Ka6 {[%clk 0:00:31.4]} 69... Kc5 {[%clk 0:00:18.4]} 70. Kxa7 {[%clk 0:00:33.3]}
1/2-1/2

[Event "*** Titled Tuesday Blitz"]
[Site "Chess.com"]
[Date "2019.06.04"]
[Round "8"]
[White "LazovT"]
[Black "Michael_Scofield01"]
[Result "1-0"]
[WhiteElo "2617"]
[BlackElo "2730"]
[TimeControl "180+2"]
[EndTime "14:52:40 PDT"]
[Termination "LazovT won by resignation"]

1. e4 {[%clk 0:02:55.8]} 1... e5 {[%clk 0:03:00.7]} 2. Bc4 {[%clk 0:02:54]} 2...
Nf6 {[%clk 0:03:00]} 3. d3 {[%clk 0:02:54.7]} 3... Bc5 {[%clk 0:02:46.6]} 4. Nf3
{[%clk 0:02:55.2]} 4... d6 {[%clk 0:02:47.3]} 5. h3 {[%clk 0:02:55]} 5... O-O
{[%clk 0:02:47.4]} 6. c3 {[%clk 0:02:55.8]} 6... Bb6 {[%clk 0:02:46.8]} 7. Bb3
{[%clk 0:02:53.3]} 7... Nc6 {[%clk 0:02:47.3]} 8. Nbd2 {[%clk 0:02:51.7]} 8...
a6 {[%clk 0:02:45.6]} 9. Nf1 {[%clk 0:02:48.6]} 9... Ne7 {[%clk 0:02:45.4]} 10.
g4 {[%clk 0:02:42.5]} 10... d5 {[%clk 0:02:33.7]} 11. Qe2 {[%clk 0:02:30.4]}
11... dxe4 {[%clk 0:02:24.5]} 12. dxe4 {[%clk 0:02:31.5]} 12... Nc6 {[%clk
0:02:25.6]} 13. Ng3 {[%clk 0:02:27.4]} 13... Be6 {[%clk 0:02:25.5]} 14. g5
{[%clk 0:02:08.6]} 14... Nd7 {[%clk 0:02:24.9]} 15. Bc2 {[%clk 0:02:07]} 15...
Qe7 {[%clk 0:02:14.2]} 16. Nh4 {[%clk 0:01:57.4]} 16... Rad8 {[%clk 0:02:06.3]}
17. Nhf5 {[%clk 0:01:55.1]} 17... Qc5 {[%clk 0:01:58.3]} 18. Be3 {[%clk
0:01:55.9]} 18... Qb5 {[%clk 0:01:46.8]} 19. Bd3 {[%clk 0:01:52.7]} 19... Qa5
{[%clk 0:01:44]} 20. O-O {[%clk 0:01:40.7]} 20... Bxe3 {[%clk 0:01:42.6]} 21.
fxe3 {[%clk 0:01:35]} 21... g6 {[%clk 0:01:21.7]} 22. Nh6+ {[%clk 0:01:34.6]}
22... Kg7 {[%clk 0:01:22.1]} 23. Bc4 {[%clk 0:01:33.8]} 23... Bxc4 {[%clk
0:01:04]} 24. Qxc4 {[%clk 0:01:35.7]} 24... f6 {[%clk 0:01:04.9]} 25. h4 {[%clk
0:01:17.4]} 25... Qb5 {[%clk 0:00:59.8]} 26. Qxb5 {[%clk 0:01:14.4]} 26... axb5
{[%clk 0:01:01.7]} 27. Rad1 {[%clk 0:01:06.8]} 27... fxg5 {[%clk 0:00:55]} 28.
hxg5 {[%clk 0:01:02.2]} 28... Rxf1+ {[%clk 0:00:53.1]} 29. Rxf1 {[%clk
0:00:59.5]} 29... Rf8 {[%clk 0:00:53.2]} 30. Ng4 {[%clk 0:00:47.9]} 30... Rxf1+
{[%clk 0:00:50.9]} 31. Kxf1 {[%clk 0:00:47]} 31... Nc5 {[%clk 0:00:51.6]} 32. b3
{[%clk 0:00:44.6]} 32... Ne6 {[%clk 0:00:51.5]} 33. Nf6 {[%clk 0:00:44]} 33...
Nxg5 {[%clk 0:00:38.7]} 34. Ne8+ {[%clk 0:00:44.9]} 34... Kf7 {[%clk 0:00:37.6]}
35. Nxc7 {[%clk 0:00:46.8]} 35... b4 {[%clk 0:00:38.8]} 36. cxb4 {[%clk
0:00:46.4]} 36... Nxb4 {[%clk 0:00:40.4]} 37. a4 {[%clk 0:00:48.1]} 37... h5
{[%clk 0:00:39.9]} 38. Nd5 {[%clk 0:00:41.9]} 38... Nc6 {[%clk 0:00:26.8]} 39.
b4 {[%clk 0:00:38.9]} 39... h4 {[%clk 0:00:27]} 40. Nh1 {[%clk 0:00:37.2]} 40...
Nxe4 {[%clk 0:00:27.7]} 41. b5 {[%clk 0:00:39.1]} 41... Na5 {[%clk 0:00:26.5]}
42. Kg2 {[%clk 0:00:33]} 42... g5 {[%clk 0:00:21.4]} 43. Kf3 {[%clk 0:00:32.3]}
43... Nc5 {[%clk 0:00:21.3]} 44. Nc3 {[%clk 0:00:31.1]} 44... Nc4 {[%clk
0:00:21]} 45. Kg4 {[%clk 0:00:26.6]} 45... Kg6 {[%clk 0:00:21.7]} 46. e4 {[%clk
0:00:27.8]} 46... Ne3+ {[%clk 0:00:20.3]} 47. Kf3 {[%clk 0:00:28.6]} 47... Nc2
{[%clk 0:00:21.2]} 48. Nf2 {[%clk 0:00:24.9]} 48... Nd4+ {[%clk 0:00:21]} 49.
Kg4 {[%clk 0:00:25.5]} 49... Nd7 {[%clk 0:00:22.1]} 50. Nd5 {[%clk 0:00:22.6]}
50... Nf6+ {[%clk 0:00:19.1]} 51. Nxf6 {[%clk 0:00:23.3]} 51... Kxf6 {[%clk
0:00:21]} 52. Nh3 {[%clk 0:00:24.9]} 52... Ne6 {[%clk 0:00:19.5]} 53. a5 {[%clk
0:00:25.7]} 53... Nc5 {[%clk 0:00:12.8]} 54. Nxg5 {[%clk 0:00:24]} 54... h3
{[%clk 0:00:13.3]} 55. Nxh3 {[%clk 0:00:24.9]} 55... Ke6 {[%clk 0:00:12.4]} 56.
Ng5+ {[%clk 0:00:24.5]} 56... Kf6 {[%clk 0:00:11.6]} 57. Kh5 {[%clk 0:00:24.3]}
57... Ke7 {[%clk 0:00:10.2]} 58. Kg6 {[%clk 0:00:25.6]} 58... Kd6 {[%clk
0:00:10.7]} 59. Kf6 {[%clk 0:00:26.8]} 59... Nb3 {[%clk 0:00:10.5]} 60. a6
{[%clk 0:00:26]} 60... bxa6 {[%clk 0:00:11.6]} 61. bxa6 {[%clk 0:00:27.9]} 61...
Kc6 {[%clk 0:00:12.7]} 62. Kxe5 {[%clk 0:00:26]} 62... Nc5 {[%clk 0:00:13.6]}
63. Kd4 {[%clk 0:00:16.9]} 63... Nxe4 {[%clk 0:00:13.8]} 64. Nxe4 {[%clk
0:00:18.4]} 64... Kb6 {[%clk 0:00:13.8]} 65. Nc5 {[%clk 0:00:20.3]} 65... Ka7
{[%clk 0:00:14.4]} 66. Kc4 {[%clk 0:00:22.2]} 66... Kb8 {[%clk 0:00:15.2]} 67.
Kb5 {[%clk 0:00:22.5]} 1-0

[Event "*** Titled Tuesday Blitz"]
[Site "Chess.com"]
[Date "2019.06.04"]
[Round "8"]
[White "GMKrikor"]
[Black "FMJoseHerrera"]
[Result "1-0"]
[WhiteElo "2708"]
[BlackElo "2608"]
[TimeControl "180+2"]
[EndTime "14:53:06 PDT"]
[Termination "GMKrikor won on time"]

1. e4 {[%clk 0:03:01.9]} 1... c5 {[%clk 0:03:00.8]} 2. Nf3 {[%clk 0:03:02.4]}
2... e6 {[%clk 0:02:57.5]} 3. g3 {[%clk 0:03:03.7]} 3... b6 {[%clk 0:02:58.2]}
4. Bg2 {[%clk 0:03:03.1]} 4... Bb7 {[%clk 0:02:59.4]} 5. Qe2 {[%clk 0:02:57]}
5... d6 {[%clk 0:02:59.4]} 6. O-O {[%clk 0:02:58.2]} 6... Nf6 {[%clk 0:03:00.1]}
7. d4 {[%clk 0:02:57.9]} 7... Bxe4 {[%clk 0:02:36.4]} 8. dxc5 {[%clk 0:02:26.7]}
8... bxc5 {[%clk 0:02:33.8]} 9. Nc3 {[%clk 0:02:25.6]} 9... Bc6 {[%clk
0:02:31.3]} 10. Bf4 {[%clk 0:02:01.9]} 10... Be7 {[%clk 0:02:27.3]} 11. Rad1
{[%clk 0:02:02.1]} 11... O-O {[%clk 0:02:21.3]} 12. Ng5 {[%clk 0:01:54.2]} 12...
Bxg2 {[%clk 0:02:21.4]} 13. Kxg2 {[%clk 0:01:56.1]} 13... Qc7 {[%clk 0:02:12.7]}
14. Qf3 {[%clk 0:01:55.6]} 14... Nc6 {[%clk 0:02:08.3]} 15. Nb5 {[%clk
0:01:56.4]} 15... Qb6 {[%clk 0:02:04.6]} 16. Nxd6 {[%clk 0:01:19.1]} 16... Nd4
{[%clk 0:01:57]} 17. Qb7 {[%clk 0:01:19.1]} 17... Nd5 {[%clk 0:01:38.8]} 18.
Nge4 {[%clk 0:00:32.8]} 18... Rab8 {[%clk 0:00:53.6]} 19. Qxb6 {[%clk
0:00:29.2]} 19... Nxf4+ {[%clk 0:00:54.8]} 20. gxf4 {[%clk 0:00:28.2]} 20...
axb6 {[%clk 0:00:56.7]} 21. c3 {[%clk 0:00:19.8]} 21... Nc6 {[%clk 0:00:49.2]}
22. Nb5 {[%clk 0:00:17.9]} 22... Rfd8 {[%clk 0:00:48.2]} 23. Kf3 {[%clk
0:00:19]} 23... f5 {[%clk 0:00:45.7]} 24. Nd2 {[%clk 0:00:19.1]} 24... e5 {[%clk
0:00:46.4]} 25. Nc4 {[%clk 0:00:18.1]} 25... e4+ {[%clk 0:00:47.4]} 26. Ke2
{[%clk 0:00:17.3]} 26... Kf7 {[%clk 0:00:45.5]} 27. f3 {[%clk 0:00:14]} 27...
exf3+ {[%clk 0:00:39.7]} 28. Kxf3 {[%clk 0:00:15.9]} 28... h6 {[%clk 0:00:39]}
29. Rfe1 {[%clk 0:00:15.3]} 29... g5 {[%clk 0:00:39.5]} 30. h3 {[%clk
0:00:12.7]} 30... Rxd1 {[%clk 0:00:34.4]} 31. Rxd1 {[%clk 0:00:13.7]} 31... Rg8
{[%clk 0:00:34.7]} 32. Rd7 {[%clk 0:00:12.1]} 32... g4+ {[%clk 0:00:35.4]} 33.
hxg4 {[%clk 0:00:12.7]} 33... fxg4+ {[%clk 0:00:37.3]} 34. Kg2 {[%clk
0:00:11.6]} 34... Ke6 {[%clk 0:00:37.3]} 35. Rc7 {[%clk 0:00:10.1]} 35... Nd8
{[%clk 0:00:32.5]} 36. f5+ {[%clk 0:00:09.7]} 36... Kf6 {[%clk 0:00:31.9]} 37.
Ne3 {[%clk 0:00:10.6]} 37... Bf8 {[%clk 0:00:26.1]} 38. Rd7 {[%clk 0:00:03.8]}
38... Nc6 {[%clk 0:00:24.4]} 39. Nc7 {[%clk 0:00:04.9]} 39... h5 {[%clk
0:00:22]} 40. Ncd5+ {[%clk 0:00:04.9]} 40... Kg5 {[%clk 0:00:23.4]} 41. f6
{[%clk 0:00:05.1]} 41... h4 {[%clk 0:00:23.5]} 42. Rh7 {[%clk 0:00:03.6]} 42...
h3+ {[%clk 0:00:24]} 43. Kf1 {[%clk 0:00:04]} 43... Bd6 {[%clk 0:00:22.7]} 44.
f7 {[%clk 0:00:04.1]} 44... Rf8 {[%clk 0:00:24.2]} 45. Ke2 {[%clk 0:00:03.5]}
45... h2 {[%clk 0:00:24.7]} 46. Kf1 {[%clk 0:00:03.3]} 46... Ne5 {[%clk
0:00:24.3]} 47. Kg2 {[%clk 0:00:03.9]} 47... Rxf7 {[%clk 0:00:25.4]} 48. Rxf7
{[%clk 0:00:04]} 48... Nxf7 {[%clk 0:00:27.3]} 49. Nxb6 {[%clk 0:00:04.3]} 49...
Bf4 {[%clk 0:00:27.6]} 50. Ned5 {[%clk 0:00:04.7]} 50... g3 {[%clk 0:00:19.7]}
51. Nd7 {[%clk 0:00:05.3]} 51... Bd6 {[%clk 0:00:19.4]} 52. Ne3 {[%clk
0:00:04.2]} 52... Nh6 {[%clk 0:00:17.9]} 53. a4 {[%clk 0:00:04.2]} 53... Bc7
{[%clk 0:00:16]} 54. Nxc5 {[%clk 0:00:05.1]} 54... Bb6 {[%clk 0:00:17.3]} 55.
Ne6+ {[%clk 0:00:05.8]} 55... Kf6 {[%clk 0:00:17.8]} 56. Nd4 {[%clk 0:00:05.9]}
56... Nf7 {[%clk 0:00:18.4]} 57. Nf1 {[%clk 0:00:06.6]} 57... Bc7 {[%clk
0:00:18.6]} 58. Ne2 {[%clk 0:00:06.9]} 58... Ng5 {[%clk 0:00:15.5]} 59. Nfxg3
{[%clk 0:00:08.2]} 59... Ke6 {[%clk 0:00:14.4]} 60. Kxh2 {[%clk 0:00:09.1]}
60... Kd5 {[%clk 0:00:14.3]} 61. b3 {[%clk 0:00:08.1]} 61... Ne4 {[%clk
0:00:14.7]} 62. Kg2 {[%clk 0:00:06.9]} 62... Nd2 {[%clk 0:00:15.9]} 63. Nc1
{[%clk 0:00:07.2]} 63... Be5 {[%clk 0:00:15.7]} 64. Nge2 {[%clk 0:00:08.1]}
64... Kc5 {[%clk 0:00:16.8]} 65. Nd3+ {[%clk 0:00:06.5]} 65... Kd5 {[%clk
0:00:17.9]} 66. Nxe5 {[%clk 0:00:08.1]} 66... Kxe5 {[%clk 0:00:19.8]} 67. Nc1
{[%clk 0:00:09.5]} 67... Kd5 {[%clk 0:00:18.9]} 68. a5 {[%clk 0:00:08]} 68...
Kc5 {[%clk 0:00:19.7]} 69. b4+ {[%clk 0:00:09.7]} 69... Kb5 {[%clk 0:00:20.8]}
70. Ne2 {[%clk 0:00:10.7]} 70... Ne4 {[%clk 0:00:21.5]} 71. Kf3 {[%clk
0:00:11.9]} 71... Nd2+ {[%clk 0:00:03.5]} 72. Ke3 {[%clk 0:00:11.4]} 1-0